bitfinex-derivatives/quotes_SOLF0:USTF0_20241009
["timestamp","ask_amount","ask_price","bid_price","bid_amount"]
[1728478856604,0.12502,141.89,141.83,16.96]
[1728478857109,3.5264,141.88,141.85,3.5271]
[1728478857316,0.12502,141.89,141.85,16.96]
[1728478857710,3.5265,141.88,141.85,16.96]
[1728478858213,0.12502,141.89,141.84,6.254]
[1728478858525,0.12502,141.89,141.84,2.7268]
[1728478859017,3.527,141.86,141.84,2.7268]
[1728478859417,0.12502,141.89,141.84,6.2539]
[1728478859616,3.5265,141.88,141.84,6.2539]
[1728478859811,0.12502,141.89,141.84,2.7268]
[1728478860020,3.527,141.86,141.84,2.7268]
[1728478860221,0.12502,141.89,141.84,2.7268]
[1728478860917,0.12502,141.89,141.81,16.96]
[1728478861122,23.62502,141.89,141.79,26.2226]
[1728478861629,3.5278,141.83,141.79,29.7511]
[1728478861819,16.96,141.87,141.79,2.7226]
[1728478862020,3.5281,141.81,141.79,1.4106]
[1728478862411,6.54,141.85,141.79,1.4106]
[1728478862616,3.528,141.82,141.79,1.4106]
[1728478863021,6.54,141.85,141.79,1.4106]
[1728478863317,3.5278,141.83,141.79,1.4106]
[1728478863522,6.54,141.85,141.8,20.4882]
[1728478863821,3.5275,141.84,141.8,20.4882]
[1728478864322,3.5272,141.85,141.81,3.528]
[1728478865122,3.5274,141.84,141.81,3.528]
[1728478865319,6.3,141.87,141.82,3.5278]
[1728478865618,6.3,141.87,141.8,16.96]
[1728478866020,3.5273,141.85,141.81,3.528]
[1728478866423,6.3,141.87,141.81,3.528]
[1728478866625,3.5274,141.84,141.81,3.528]
[1728478866918,23.26,141.87,141.79,1.4168]
[1728478867124,3.5282,141.81,141.77,0.12502]
[1728478867328,16.96,141.85,141.77,0.12502]
[1728478867722,3.5287,141.79,141.77,0.12502]
[1728478867926,16.96,141.81,141.77,0.12502]
[1728478868318,3.5288,141.78,141.77,0.12502]
[1728478868530,6.3,141.78,141.71,0.12502]
[1728478869221,3.5297,141.75,141.71,3.65552]
[1728478869520,16.96,141.77,141.71,0.12502]
[1728478870222,6.3,141.76,141.71,0.12502]
[1728478870625,16.96,141.77,141.71,0.12502]
[1728478870821,23.22597214,141.82,141.71,17.08502]
[1728478870822,16.96,141.79,141.71,17.08502]
[1728478871128,2.7305,141.82,141.74,3.5297]
[1728478871129,9.829,141.78,141.74,3.5297]
[1728478871318,3.529,141.78,141.74,3.5297]
[1728478871925,19.6905,141.82,141.73,16.96]
[1728478872128,3.5284,141.8,141.76,3.5292]
[1728478872541,6.3,141.81,141.75,16.96]
[1728478872741,3.5288,141.79,141.75,20.4894]
[1728478874439,16.96,141.8,141.73,1.3681]
[1728478874644,16.96,141.8,141.72,1.3688]
[1728478874940,3.5294,141.76,141.71,0.12502]
[1728478875142,6.3,141.75,141.71,0.12502]
[1728478876039,3.53,141.74,141.71,0.12502]
[1728478876746,6.3,141.77,141.71,17.08502]
[1728478876948,6.3,141.77,141.71,0.12502]
[1728478877547,16.96,141.76,141.71,0.12502]
[1728478877736,3.5303,141.72,141.71,0.12502]
[1728478881447,4.85221337,141.82,141.71,0.12502]
[1728478881648,16.96,141.8,141.72,3.5303]
[1728478881853,16.96,141.8,141.71,0.12502]
[1728478882248,6.3,141.79,141.72,16.96]
[1728478882547,3.5291,141.78,141.72,16.96]
[1728478882753,6.3,141.79,141.73,3.5299]
[1728478882955,3.5298,141.75,141.72,1.3496]
[1728478884449,3.5301,141.73,141.72,1.3496]
[1728478885344,3.5301,141.73,141.71,0.12502]
[1728478885954,3.5303,141.72,141.71,0.12502]
[1728478886352,27.13,141.78,141.71,0.12502]
[1728478886548,6.3,141.77,141.71,0.12502]
[1728478887048,3.5303,141.72,141.71,0.12502]
[1728478890359,6.3,141.74,141.71,0.12502]
[1728478890753,3.5299,141.74,141.71,3.65552]
[1728478890955,3.5299,141.74,141.71,0.12502]
[1728478891460,6.3,141.78,141.71,0.12502]
[1728478892153,3.5293,141.76,141.73,3.5298]
[1728478892361,6.3,141.78,141.71,27.25502]
[1728478892953,1.369,141.8,141.71,27.25502]
[1728478893155,6.3,141.81,141.73,27.13]
[1728478893359,3.5287,141.79,141.74,4.0274]
[1728478893552,6.3,141.81,141.74,4.0274]
[1728478893954,3.5285,141.8,141.77,3.5289]
[1728478895367,3.5285,141.8,141.74,4.0274]
[1728478895554,3.528,141.82,141.76,27.13]
[1728478895859,0.12502,141.83,141.77,11.70160222]
[1728478896051,0.12502,141.83,141.8,3.5283]
[1728478896248,0.12502,141.83,141.77,6.12]
[1728478896457,0.12502,141.83,141.78,32.71461936]
[1728478896661,0.12502,141.83,141.78,27.13]
[1728478897166,0.12502,141.83,141.79,3.5285]
[1728478897454,0.12502,141.83,141.78,27.13]
[1728478897664,0.12502,141.83,141.8,3.5283]
[1728478898756,3.65262,141.83,141.8,3.5283]
[1728478899160,3.65262,141.83,141.78,27.13]
[1728478899357,0.12502,141.83,141.81,3.528]
[1728478900055,0.12502,141.83,141.82,3.5278]
[1728478900962,0.12502,141.83,141.81,27.13]
[1728478901460,0.12502,141.83,141.82,5.59814449]
[1728478901862,0.12502,141.83,141.82,9.12594449]
[1728478902962,6.5269,141.86,141.83,3.5274]
[1728478903161,3.0,141.86,141.81,27.13]
[1728478903366,3.0,141.86,141.82,14.56632979]
[1728478903561,3.0,141.86,141.83,15.24993453]
[1728478903765,3.0,141.86,141.83,6.12]
[1728478904166,3.0,141.86,141.84,5.60158527]
[1728478904368,3.0,141.86,141.84,3.5273]
[1728478904568,3.0,141.86,141.83,6.12]
[1728478905068,3.0,141.86,141.85,3.5271]
[1728478906763,3.0,141.86,141.85,9.12521097]
[1728478907474,0.12502,141.89,141.84,16.92]
[1728478907673,0.12502,141.89,141.87,16.92]
[1728478908167,0.12502,141.89,141.87,20.4465]
[1728478908963,0.12502,141.89,141.88,3.5264]
[1728478909170,1.56462,141.95,141.88,23.04]
[1728478909359,0.12502,141.95,141.88,23.04]
[1728478909564,3.5252,141.93,141.89,7.4485]
[1728478909768,0.12502,141.95,141.89,7.4485]
[1728478909978,0.12502,141.95,141.9,3.5258]
[1728478910565,3.5251,141.94,141.91,3.5256]
[1728478910870,3.5251,141.94,141.89,1.3285]
[1728478911177,0.12502,141.95,141.9,16.92]
[1728478912074,3.64982,141.95,141.91,3.5254]
[1728478912275,0.12502,141.95,141.92,5.58326167]
[1728478912476,0.12502,141.95,141.93,5.58326167]
[1728478912672,0.12502,141.95,141.93,3.525]
[1728478913179,0.12502,141.95,141.94,20.4449]
[1728478913379,0.12518,141.96,141.94,31.42545148]
[1728478913565,0.12518,141.96,141.95,6.95467638]
[1728478913761,0.12518,141.96,141.95,10.47927638]
[1728478913968,0.12502,142.01,141.95,6.95467638]
[1728478914175,0.12502,142.01,141.96,28.62177638]
[1728478914369,0.12502,142.01,141.97,5.58177638]
[1728478914569,0.12502,142.01,141.96,6.12]
[1728478914769,0.12502,142.01,141.97,5.57166958]
[1728478914971,3.64832,142.01,141.98,3.5238]
[1728478915776,0.12502,142.01,141.98,3.5238]
[1728478916176,0.12502,142.01,141.99,3.5234]
[1728478916374,0.12502,142.07,142.0,33.19]
[1728478916566,0.12502,142.07,142.01,5.5599638]
[1728478916770,0.12502,142.07,142.01,1.4435]
[1728478916971,3.5229,142.02,141.98,27.07]
[1728478917172,0.12502,142.07,141.99,11.68045933]
[1728478917467,3.5229,142.02,141.99,6.12]
[1728478919181,3.5229,142.02,141.98,3.5238]
[1728478919481,3.5232,142.01,141.98,3.5238]
[1728478919679,3.5232,142.01,141.99,6.12]
[1728478920079,3.5231,142.02,141.99,6.12]
[1728478920575,1.3821,142.06,141.99,6.12]
[1728478921184,3.5224,142.04,141.99,6.12]
[1728478921385,1.3821,142.06,141.99,6.12]
[1728478921774,0.12502,142.07,142.0,27.07]
[1728478921980,0.12502,142.07,142.02,3.5228]
[1728478922276,3.5223,142.05,142.0,32.60943157]
[1728478922468,0.12502,142.07,141.99,9.6435]
[1728478922781,0.12502,142.07,141.99,6.12]
[1728478923184,0.12502,142.07,142.0,3.5232]
[1728478923378,0.12502,142.07,141.98,27.07]
[1728478923689,3.522,142.06,142.02,3.5229]
[1728478923891,3.522,142.06,142.0,27.07]
[1728478923892,0.12502,142.07,142.03,6.0]
[1728478924385,3.64682,142.07,142.03,9.5225]
[1728478924983,0.12502,142.07,142.03,9.5225]
[1728478925181,0.12502,142.07,142.03,6.0]
[1728478925379,0.12502,142.07,142.03,33.07]
[1728478925688,0.12502,142.07,142.05,3.5219]
[1728478926686,0.12502,142.07,142.03,33.07]
[1728478926885,0.12502,142.07,142.04,5.98]
[1728478927179,0.12502,142.07,142.0,27.07]
[1728478927481,0.12502,142.07,141.98,27.07]
[1728478927686,0.12502,142.07,141.99,5.98]
[1728478927877,0.12502,142.07,141.99,9.5036]
[1728478928083,2.89492,142.07,141.99,9.5036]
[1728478928284,2.89492,142.07,141.98,27.07]
[1728478928481,2.89492,142.07,141.98,9.5038]
[1728478928881,3.523,142.02,141.98,9.5038]
[1728478929084,2.89492,142.07,142.0,3.5233]
[1728478929085,1.50292,142.07,142.0,3.5233]
[1728478929289,1.50292,142.07,141.98,33.05]
[1728478929482,3.5229,142.02,141.98,33.05]
[1728478930182,28.57292,142.07,141.96,78.9225]
[1728478930381,28.57292,142.07,141.96,8.8025]
[1728478930580,27.07,142.05,141.96,7.3518]
[1728478930780,5.98,142.04,141.96,5.98]
[1728478930984,5.98,142.04,141.95,0.12502]
[1728478931183,3.5232,142.01,141.95,9.62962]
[1728478931379,1.3724,142.03,141.95,9.62962]
[1728478931788,3.5238,141.99,141.95,9.62962]
[1728478932490,3.5238,141.99,141.96,6.0]
[1728478932794,3.5239,141.98,141.96,6.0]
[1728478933189,3.5237,141.99,141.96,9.5244]
[1728478934094,3.5237,141.99,141.96,6.0]
[1728478934400,3.5235,142.0,141.96,6.0]
[1728478934884,1.3724,142.03,141.96,6.0]
[1728478935494,1.50292,142.07,142.0,27.07]
[1728478935695,1.50292,142.07,142.0,33.07]
[1728478936091,3.5227,142.03,142.0,33.07]
[1728478936392,1.50292,142.07,142.01,16.91]
[1728478937196,3.5223,142.05,142.01,16.91]
[1728478937795,3.522,142.06,142.03,16.91]
[1728478938097,1.50292,142.07,142.03,16.91]
[1728478938391,1.50292,142.07,142.01,16.91]
[1728478939488,3.5234,142.01,141.99,16.91]
[1728478939691,5.00367915,142.07,141.99,16.91]
[1728478940088,3.5233,142.01,141.99,16.91]
[1728478941396,1.50292,142.07,141.99,16.91]
[1728478941598,1.50292,142.07,141.99,20.4335]
[1728478941803,1.50292,142.07,141.99,16.91]
[1728478942097,3.523,142.02,141.99,16.91]
[1728478942994,1.50292,142.07,141.97,5.98]
[1728478942995,3.5234,142.0,141.97,16.91]
[1728478943193,6.0,142.05,141.97,16.91]
[1728478944001,3.5238,141.99,141.97,16.91]
[1728478944487,1.50292,142.07,141.97,16.91]
[1728478944694,0.12502,142.07,142.05,16.91]
[1728478945199,0.12502,142.07,142.05,20.432]
[1728478947299,0.12502,142.07,142.03,16.91]
[1728478947504,3.522,142.06,142.03,16.91]
[1728478948100,0.12502,142.07,142.05,16.91]
[1728478949405,0.12502,142.07,142.06,3.5219]
[1728478949795,0.12502,142.07,142.05,16.91]
[1728478950608,0.12502,142.07,142.05,20.4324]
[1728478951493,0.12502,142.07,142.05,16.91]
[1728478951692,0.12502,142.07,142.06,3.5222]
[1728478951896,0.12502,142.07,142.05,16.91]
[1728478952698,0.12502,142.07,142.05,20.4323]
[1728478953296,0.12502,142.07,142.06,3.5222]
[1728478954602,0.12502,142.07,142.05,20.4324]
[1728478956413,0.12502,142.07,142.05,16.91]
[1728478956600,0.12502,142.07,142.01,8.6801]
[1728478956805,0.12502,142.07,142.02,16.91]
[1728478957408,0.12502,142.07,142.04,16.91]
[1728478957609,0.12502,142.07,142.01,2.8001]
[1728478957816,3.523,142.03,142.01,1.4333]
[1728478958112,3.523,142.03,141.98,22.79]
[1728478958410,18.38102,142.07,141.98,22.79]
[1728478958608,2.79512,142.07,141.97,1.4517]
[1728478958913,16.91,142.06,141.98,3.5242]
[1728478959112,3.5234,142.02,141.98,3.5242]
[1728478959315,5.88,142.03,141.98,3.5242]
[1728478959512,5.88,142.03,141.97,1.4517]
[1728478959813,3.524,142.0,141.97,1.4517]
[1728478960012,5.88,142.03,141.96,1.4177]
[1728478960210,16.91,142.02,141.95,0.12502]
[1728478960410,3.5244,141.98,141.95,0.12502]
[1728478961611,16.91,142.04,141.95,17.03502]
[1728478961815,3.5239,142.0,141.95,17.03502]
[1728478962114,5.88,142.03,141.95,17.03502]
[1728478962315,3.5239,142.0,141.95,17.03502]
[1728478962914,3.5244,141.98,141.95,0.12502]
[1728478963216,5.88,142.03,141.95,0.12502]
[1728478963604,3.524,141.99,141.95,0.12502]
[1728478963921,22.79,142.03,141.95,0.12502]
[1728478965814,3.5236,142.01,141.95,0.12502]
[1728478966026,22.79,142.03,141.95,0.12502]
[1728478966523,3.5236,142.01,141.95,3.64982]
[1728478966723,22.79,142.03,141.95,3.64982]
[1728478966923,5.88,142.03,141.95,0.12502]
[1728478967221,3.5242,141.98,141.95,0.12502]
[1728478968327,105.65526721,142.06,141.97,16.91]
[1728478968521,24.04488984,142.05,141.97,16.91]
[1728478968820,22.79,142.05,141.97,16.91]
[1728478969032,22.79,142.05,141.95,17.03502]
[1728478969524,5.88,142.05,141.95,17.03502]
[1728478969727,5.88,142.05,141.97,16.91]
[1728478969918,115.52066721,142.06,141.97,16.91]
[1728478970120,16.91,142.04,141.95,22.91502]
[1728478970521,16.91,142.04,141.95,17.03502]
[1728478970822,3.5247,141.97,141.95,17.03502]
[1728478972229,3.5243,141.98,141.95,17.03502]
[1728478973127,5.88,142.0,141.95,17.03502]
[1728478973333,9.4037,142.0,141.97,3.5244]
[1728478973625,5.88,142.0,141.95,17.03502]
[1728478973830,5.88,142.0,141.96,3.5246]
[1728478974041,5.88,142.0,141.95,17.03502]
[1728478974230,3.5238,142.0,141.96,3.5245]
[1728478974426,5.88,142.03,141.95,17.03502]
[1728478974729,5.88,142.03,141.95,0.12502]
[1728478975036,3.5244,141.98,141.95,0.12502]
[1728478975432,5.88,142.03,141.95,0.12502]
[1728478975633,3.5244,141.98,141.95,0.12502]
[1728478975834,5.88,142.03,141.95,0.12502]
[1728478976033,16.91,142.02,141.95,0.12502]
[1728478976233,3.5237,142.0,141.95,0.12502]
[1728478976430,1.3335,142.01,141.95,0.12502]
[1728478976839,3.5238,142.0,141.95,0.12502]
[1728478977135,1.3335,142.01,141.95,0.12502]
[1728478978329,1.3335,142.01,141.95,3.64982]
[1728478978529,115.52066721,142.06,141.96,22.35228049]
[1728478978829,3.5236,142.01,141.97,5.44228049]
[1728478979027,3.5236,142.01,141.96,16.91]
[1728478979225,3.5236,142.01,141.98,3.5241]
[1728478979439,3.5237,142.01,141.96,16.91]
[1728478979737,3.5237,142.01,141.97,5.4437232]
[1728478979933,5.88,142.05,141.98,5.4437232]
[1728478980239,3.5237,142.0,141.97,3.5243]
[1728478980434,3.5237,142.0,141.98,5.44579252]
[1728478980640,3.5237,142.0,141.97,3.5243]
[1728478980839,3.5237,142.0,141.98,5.44583061]
[1728478981039,3.5237,142.0,141.97,3.5243]
[1728478981236,5.88,142.04,141.98,22.35594494]
[1728478981439,5.88,142.04,141.99,5.44594494]
[1728478981640,3.5239,142.0,141.98,16.91]
[1728478982133,3.5239,142.0,141.99,5.44675869]
[1728478983241,3.5231,142.03,141.99,8.97065869]
[1728478983442,5.88,142.04,141.99,3.5239]
[1728478983742,5.88,142.04,141.98,16.91]
[1728478983743,5.88,142.04,142.0,16.91]
[1728478984743,3.523,142.03,141.98,20.4341]
[1728478984938,5.88,142.04,141.98,20.4341]
[1728478985243,5.88,142.04,141.99,5.44677108]
[1728478985443,3.5236,142.01,142.0,5.44677108]
[1728478985640,5.88,142.04,142.0,8.97047108]
[1728478985848,5.88,142.04,142.0,3.5237]
[1728478986241,3.5231,142.03,142.0,3.5237]
[1728478986537,99.95966721,142.06,142.0,3.5236]
[1728478986743,105.77966721,142.06,141.99,16.91]
[1728478986943,3.5231,142.03,142.0,5.44662128]
[1728478987144,3.5231,142.03,141.99,20.4338]
[1728478987339,3.5231,142.03,142.0,5.44657622]
[1728478987545,3.5231,142.03,142.0,3.5237]
[1728478987748,3.5231,142.03,141.99,16.91]
[1728478987950,3.5231,142.03,142.0,5.44657625]
[1728478988144,3.5231,142.03,142.0,3.5236]
[1728478989946,3.5231,142.03,142.01,5.44631606]
[1728478990146,105.77966721,142.06,142.01,3.5234]
[1728478990341,3.5226,142.05,141.99,16.91]
[1728478990546,98.61066721,142.06,142.02,3.5231]
[1728478991048,3.5226,142.05,142.01,16.91]
[1728478991348,3.5226,142.05,142.02,3.5231]
[1728478992748,98.61066721,142.06,142.02,3.5231]
[1728478992950,98.61066721,142.06,142.0,16.91]
[1728478993253,98.61066721,142.06,141.98,16.91]
[1728478993545,98.61066721,142.06,141.99,5.447422]
[1728478993546,3.5239,142.0,141.99,5.447422]
[1728478993753,3.5239,142.0,141.97,6.3362]
[1728478993955,3.5239,142.0,141.98,5.44774928]
[1728478994249,5.82,142.04,141.99,5.44792812]
[1728478994454,5.82,142.04,141.98,16.91]
[1728478995357,3.5235,142.01,141.98,20.4342]
[1728478995544,3.5235,142.01,141.99,5.44869464]
[1728478995745,3.5235,142.01,141.98,20.4342]
[1728478996053,3.5231,142.03,141.99,8.97255375]
[1728478996251,3.5231,142.03,141.99,3.5238]
[1728478996557,3.5232,142.03,141.99,3.5238]
[1728478996757,0.12502,142.07,142.02,16.91]
[1728478997746,3.5227,142.05,142.02,16.91]
[1728478998156,0.12502,142.07,142.02,16.91]
[1728478998373,3.5228,142.04,142.02,16.91]
[1728478998857,0.12502,142.07,142.02,16.91]
[1728479000151,0.12502,142.07,142.0,16.91]
[1728479000651,3.523,142.03,142.0,20.4337]
[1728479000854,0.12502,142.07,141.99,16.91]
[1728479002047,3.5233,142.02,141.99,20.4339]
[1728479002442,5.82,142.04,142.01,16.91]
[1728479003149,5.82,142.06,142.02,5.44802903]
[1728479003457,3.5226,142.05,142.01,20.4334]
[1728479003648,3.5226,142.05,142.02,5.44794102]
[1728479003850,3.5228,142.04,142.01,20.4334]
[1728479004659,3.5228,142.04,142.01,16.91]
[1728479004953,3.5226,142.05,142.02,5.4480981]
[1728479005152,5.82,142.06,142.01,16.91]
[1728479005461,3.5226,142.05,142.01,20.4333]
[1728479005656,5.82,142.06,142.01,16.91]
[1728479006149,3.5228,142.04,142.01,20.4334]
[1728479007360,3.523,142.03,142.01,20.4334]
[1728479007659,3.523,142.03,142.01,16.91]
[1728479007857,5.82,142.06,142.02,5.44839317]
[1728479008060,3.5228,142.04,142.01,16.91]
[1728479008350,5.82,142.06,141.97,2.8119]
[1728479008657,5.82,142.06,141.98,22.35926789]
[1728479008856,5.82,142.06,141.99,5.44926789]
[1728479009058,5.82,142.06,142.0,5.44926789]
[1728479009258,5.82,142.06,141.98,16.91]
[1728479009460,16.91,142.05,141.99,5.44909655]
[1728479009656,16.91,142.03,141.93,18.2659]
[1728479009857,3.5247,141.96,141.93,20.4353]
[1728479010167,5.82,142.02,141.95,5.57590947]
[1728479010355,3.5243,141.98,141.95,0.12502]
[1728479010558,5.82,142.02,141.95,0.12502]
[1728479011058,3.5247,141.96,141.95,0.12502]
[1728479011368,3.5238,142.0,141.97,3.5244]
[1728479011659,5.82,142.01,141.95,22.48377846]
[1728479011660,5.82,142.01,141.95,17.03502]
[1728479011957,3.5243,141.98,141.95,0.12502]
[1728479012663,5.82,142.01,141.95,0.12502]
[1728479012856,3.524,141.99,141.96,22.35812646]
[1728479013169,3.524,141.99,141.96,16.91]
[1728479013558,3.5242,141.98,141.96,16.91]
[1728479013756,3.5242,141.98,141.95,3.64992]
[1728479014057,3.5242,141.98,141.96,5.447867]
[1728479014267,3.5242,141.98,141.95,3.64992]
[1728479014770,3.5242,141.98,141.96,5.44779602]
[1728479014965,3.5242,141.98,141.95,3.64992]
[1728479015164,3.5242,141.98,141.96,5.4480898]
[1728479015365,3.5242,141.98,141.95,3.64992]
[1728479015559,3.5242,141.98,141.96,22.35854835]
[1728479015764,3.5244,141.97,141.96,16.91]
[1728479015953,3.5244,141.97,141.96,22.35861775]
[1728479016158,5.82,142.01,141.96,22.35861775]
[1728479016361,5.82,142.01,141.96,16.91]
[1728479017167,3.5238,142.0,141.96,16.91]
[1728479017367,5.82,142.01,141.96,16.91]
[1728479019165,3.5242,141.99,141.96,16.91]
[1728479019469,5.82,142.01,141.96,16.91]
[1728479020368,5.82,142.01,141.97,5.45271352]
[1728479020668,5.82,142.01,141.96,16.91]
[1728479021169,3.5238,142.0,141.96,16.91]
[1728479021368,5.82,142.01,141.97,5.45381528]
[1728479021575,5.82,142.01,141.96,16.91]
[1728479021869,18.258,142.04,141.97,5.45381292]
[1728479022067,5.76,142.03,141.96,16.91]
[1728479022272,5.76,142.03,141.97,5.45375178]
[1728479022465,3.524,141.99,141.96,16.91]
[1728479022666,3.524,141.99,141.97,5.45497033]
[1728479022867,3.524,141.99,141.96,16.91]
[1728479023063,3.524,141.99,141.97,5.4549616]
[1728479023264,5.76,142.03,141.96,16.91]
[1728479023459,5.76,142.02,141.97,5.45648918]
[1728479023671,5.76,142.02,141.98,5.45648918]
[1728479023871,5.76,142.02,141.96,16.91]
[1728479024371,3.5238,142.0,141.97,8.98077788]
[1728479024571,3.5238,142.0,141.98,5.45647788]
[1728479024762,3.5238,142.0,141.99,5.45772335]
[1728479025869,3.5243,141.98,141.95,3.64992]
[1728479026063,3.5243,141.98,141.96,5.45985885]
[1728479026266,3.5243,141.98,141.97,5.45985885]
[1728479030474,3.5234,142.0,141.95,0.12502]
[1728479030674,16.91,142.0,141.96,5.46175075]
[1728479030973,20.42284825,142.0,141.95,0.12502]
[1728479031173,20.42284825,142.0,141.96,5.46175372]
[1728479031375,20.42284825,142.0,141.95,0.12502]
[1728479031575,3.5241,141.97,141.96,5.46144768]
[1728479032279,3.5244,141.96,141.95,0.12502]
[1728479032572,3.5244,141.96,141.95,5.58622645]
[1728479034177,3.5244,141.96,141.95,0.12502]
[1728479034375,3.5244,141.96,141.95,5.58604342]
[1728479037483,3.5244,141.96,141.95,0.12502]
[1728479037775,3.5244,141.96,141.95,5.58420229]
[1728479039086,16.91,142.02,141.95,5.58420229]
[1728479039285,5.76,142.01,141.96,5.45918229]
[1728479039482,16.91,142.0,141.95,0.12502]
[1728479039677,3.5244,141.96,141.95,0.12502]
[1728479039877,3.5244,141.96,141.95,5.58382896]
[1728479040485,3.5244,141.96,141.95,0.12502]
[1728479042777,14.3644,141.96,141.95,0.12502]
[1728479043984,14.3644,141.96,141.9,1.41]
[1728479043985,10.84,141.96,141.9,1.41]
[1728479044187,10.84,141.93,141.89,0.12502]
[1728479044384,10.84,141.92,141.89,0.12502]
[1728479044584,5.64,141.93,141.89,0.12502]
[1728479044585,14.31177878,141.91,141.89,0.12502]
[1728479044776,3.5258,141.9,141.89,0.12502]
[1728479045175,3.5271,141.85,141.84,1.408]
[1728479045381,10.84,141.86,141.84,5.45267328]
[1728479045581,5.64,141.88,141.83,0.12502]
[1728479045775,3.5273,141.84,141.83,0.12502]
[1728479045988,16.48,141.88,141.83,10.96502]
[1728479046386,5.64,141.88,141.83,0.12502]
[1728479046582,3.5273,141.84,141.83,0.12502]
[1728479046890,5.64,141.88,141.83,0.12502]
[1728479047488,3.5273,141.84,141.83,0.12502]
[1728479047888,9.1673,141.84,141.83,0.12502]
[1728479048583,3.5286,141.79,141.78,1.408]
[1728479049582,3.5288,141.78,141.77,0.12502]
[1728479051683,22.57,141.8,141.71,0.12502]
[1728479051894,16.93,141.78,141.71,0.12502]
[1728479052300,3.5303,141.72,141.71,0.12502]
[1728479053083,3.5318,141.66,141.62,18.2536]
[1728479053695,16.93,141.73,141.64,16.93]
[1728479053896,3.60993259,141.74,141.66,16.93]
[1728479054091,93.23502,141.77,141.66,20.4616]
[1728479054296,16.93,141.72,141.62,1.3236]
[1728479054500,5.64,141.71,141.64,16.93]
[1728479054693,3.5309,141.7,141.65,3.65712]
[1728479055292,5.64,141.71,141.65,0.12502]
[1728479055894,3.5318,141.66,141.65,0.12502]
[1728479056498,5.64,141.67,141.65,0.12502]
[1728479056798,9.1718,141.67,141.65,0.12502]
[1728479056993,16.93,141.7,141.65,0.12502]
[1728479057195,5.64,141.69,141.65,0.12502]
[1728479057791,3.5315,141.68,141.65,0.12502]
[1728479058098,5.64,141.69,141.65,0.12502]
[1728479059000,3.5314,141.68,141.65,0.12502]
[1728479059390,5.64,141.69,141.65,0.12502]
[1728479059594,3.5318,141.67,141.65,0.12502]
[1728479059802,5.64,141.69,141.65,0.12502]
[1728479060101,3.5318,141.66,141.65,0.12502]
[1728479062396,9.1715,141.68,141.65,0.12502]
[1728479062598,5.64,141.69,141.65,0.12502]
[1728479062796,3.5318,141.66,141.65,0.12502]
[1728479064501,3.5317,141.67,141.65,0.12502]
[1728479065402,5.64,141.69,141.65,0.12502]
[1728479065702,3.5315,141.68,141.65,0.12502]
[1728479066206,5.64,141.69,141.65,0.12502]
[1728479066396,3.5316,141.67,141.65,0.12502]
[1728479066603,5.64,141.69,141.65,0.12502]
[1728479067201,3.5318,141.66,141.65,0.12502]
[1728479068905,3.5329,141.62,141.59,0.12502]
[1728479069607,3.5332,141.61,141.59,0.12502]